bitfinex-derivatives/quotes_SOLF0:USTF0_20250507
["timestamp","ask_amount","ask_price","bid_price","bid_amount"]
[1746596701775,6.8681,145.63,145.59,4.75169927]
[1746596702069,28.66,145.64,145.61,4.75169927]
[1746596702272,35.5277,145.64,145.61,4.75169927]
[1746596702771,35.5277,145.64,145.61,11.62029927]
[1746596703869,6.8677,145.63,145.61,11.62029927]
[1746596704265,28.66,145.64,145.61,11.62029927]
[1746596704473,35.5275,145.64,145.61,11.62029927]
[1746596704772,28.66,145.64,145.61,4.75169927]
[1746596704966,28.66,145.64,145.57,28.64]
[1746596704967,28.68,145.68,145.63,4.75169927]
[1746596705269,6.8665,145.66,145.63,4.75169927]
[1746596705471,28.68,145.68,145.63,4.75169927]
[1746596705972,4.75169927,145.67,145.62,6.8678]
[1746596706172,4.75169927,145.67,145.61,40.28009927]
[1746596706473,6.8675,145.64,145.61,11.62009927]
[1746596709373,4.75169927,145.65,145.6,28.66]
[1746596710277,6.8685,145.62,145.6,28.66]
[1746596711176,6.8688,145.61,145.56,28.66]
[1746596711473,6.8688,145.61,145.58,11.62149927]
[1746596712574,6.8684,145.62,145.6,4.75169927]
[1746596713776,6.8684,145.62,145.59,6.8696]
[1746596713777,35.5477,145.64,145.59,6.8696]
[1746596715175,35.5477,145.64,145.6,6.869]
[1746596715474,35.5477,145.64,145.6,35.529]
[1746596715777,35.5469,145.65,145.61,6.8683]
[1746596715975,35.5469,145.65,145.6,28.66]
[1746596716682,28.68,145.65,145.62,6.8679]
[1746596716975,28.68,145.65,145.6,28.66]
[1746596717176,28.68,145.65,145.63,6.8673]
[1746596717379,28.68,145.65,145.6,28.66]
[1746596718577,28.68,145.65,145.64,6.8672]
[1746596719181,6.8662,145.67,145.64,6.8672]
[1746596719473,35.5462,145.67,145.64,6.8672]
[1746596719971,6.8663,145.66,145.64,6.8672]
[1746596720167,28.68,145.67,145.64,6.8672]
[1746596720783,28.68,145.67,145.6,28.66]
[1746596720974,2.1226,145.66,145.6,28.66]
[1746596721979,6.8675,145.64,145.61,6.8684]
[1746596723379,6.8675,145.64,145.62,6.8681]
[1746596723776,6.8677,145.63,145.57,28.66]
[1746596724177,35.6077,145.63,145.57,28.66]
[1746596725295,35.6077,145.63,145.6,6.8689]
[1746596728080,28.74,145.63,145.61,6.8686]
[1746596729086,35.6077,145.63,145.6,6.8689]
[1746596732089,35.6077,145.63,145.61,6.8686]
[1746596732390,28.74,145.63,145.61,6.8686]
[1746596733291,35.6077,145.63,145.6,6.8689]
[1746596733685,28.74,145.63,145.57,28.66]
[1746596734791,28.74,145.63,145.61,6.8686]
[1746596737291,35.6077,145.63,145.61,6.8686]
[1746596737588,28.74,145.63,145.61,6.8686]
[1746596738188,28.74,145.63,145.6,6.869]
[1746596738590,35.608,145.63,145.57,28.66]
[1746596739492,4.55069211,145.62,145.57,28.66]
[1746596739692,4.55069211,145.61,145.57,28.66]
[1746596739993,9.17047252,145.6,145.59,6.8696]
[1746596741888,9.18344829,145.6,145.59,6.8696]
[1746596742087,9.18344829,145.6,145.57,28.66]
[1746596742286,9.18344829,145.59,145.57,28.66]
[1746596742483,4.57270267,145.58,145.57,28.66]
[1746596743193,9.18344829,145.58,145.57,28.66]
[1746596743493,9.1852918,145.58,145.57,28.66]
[1746596744089,9.1852918,145.58,145.57,35.5305]
[1746596745495,9.18746007,145.58,145.57,35.5305]
[1746596747294,9.18711077,145.58,145.57,35.5305]
[1746596750898,4.61074562,145.58,145.57,35.5305]
[1746596751096,9.19090397,145.58,145.57,35.5305]
[1746596752492,9.19090397,145.58,145.56,6.8708]
[1746596752696,4.58015835,145.57,145.56,6.8708]
[1746596752897,9.19090397,145.57,145.56,6.8708]
[1746596753395,9.19090397,145.57,145.55,35.5712]
[1746596753602,4.58015835,145.56,145.55,35.5712]
[1746596754099,9.19090397,145.56,145.55,35.5712]
[1746596754301,9.19090397,145.56,145.55,28.7]
[1746596757400,4.61074562,145.56,145.55,28.7]
[1746596758100,9.28838046,145.56,145.55,28.7]
[1746596758296,4.61074562,145.56,145.55,28.7]
[1746596759103,9.28747338,145.56,145.55,28.7]
[1746596761404,16.15847338,145.56,145.55,28.7]
[1746596761904,9.28747338,145.56,145.55,28.7]
[1746596763207,9.28686824,145.56,145.55,28.7]
[1746596764915,9.28530515,145.56,145.55,28.7]
[1746596765115,9.28530515,145.56,145.55,35.5715]
[1746596765617,9.28530515,145.56,145.55,28.7]
[1746596766713,4.60234337,145.56,145.55,28.7]
[1746596767025,9.28578617,145.56,145.55,28.7]
[1746596767616,9.28578617,145.56,145.55,35.5715]
[1746596768320,6.8688,145.61,145.57,6.8703]
[1746596768615,123.44989732,145.65,145.6,4.75628494]
[1746596768817,116.58289732,145.65,145.64,4.75628494]
[1746596769421,116.58289732,145.65,145.63,4.75628494]
[1746596770519,123.44979732,145.65,145.63,4.75628494]
[1746596771721,123.44979732,145.65,145.62,6.8678]
[1746596772422,116.58289732,145.65,145.62,6.8678]
[1746596773120,123.44989732,145.65,145.62,6.8678]
[1746596774821,116.58289732,145.65,145.63,6.8676]
[1746596775825,116.58289732,145.65,145.62,6.8679]
[1746596776022,6.8668,145.65,145.62,6.8679]
[1746596776223,6.8668,145.65,145.6,36.08540486]
[1746596776425,6.8668,145.65,145.61,6.8682]
[1746596777221,28.72,145.68,145.6,42.95450486]
[1746596777827,28.72,145.68,145.61,6.8686]
[1746596778623,6.8675,145.64,145.61,6.8686]
[1746596780225,11.1789619,145.63,145.6,42.95430486]
[1746596780427,6.8677,145.63,145.6,42.95430486]
[1746596780626,28.72,145.68,145.6,36.08540486]
[1746596780826,4.31125902,145.67,145.6,36.08540486]
[1746596781022,6.8675,145.64,145.61,6.8686]
[1746596781221,4.31125902,145.63,145.61,6.8686]
[1746596781423,6.8675,145.64,145.61,6.8686]
[1746596781625,4.30989785,145.63,145.61,6.8686]
[1746596781926,4.30989785,145.63,145.6,42.95440486]
[1746596781927,6.8677,145.63,145.6,42.95440486]
[1746596782228,28.72,145.68,145.6,36.08540486]
[1746596782526,4.31168189,145.67,145.6,36.08540486]
[1746596782726,4.31168189,145.66,145.6,36.08540486]
[1746596782926,6.8679,145.63,145.6,42.95430486]
[1746596783327,6.8674,145.64,145.61,6.8686]
[1746596783628,4.31275829,145.63,145.6,36.08540486]
[1746596783828,28.72,145.68,145.6,36.08540486]
[1746596784020,4.31274261,145.67,145.6,36.08540486]
[1746596784224,6.867,145.65,145.6,36.08540486]
[1746596784424,4.31274261,145.64,145.6,36.08540486]
[1746596784719,4.31274261,145.63,145.6,36.08540486]
[1746596784921,28.72,145.68,145.61,6.8683]
[1746596785122,4.30834433,145.67,145.61,6.8683]
[1746596785322,6.8673,145.64,145.61,6.8683]
[1746596787530,6.8678,145.63,145.6,42.95430486]
[1746596789033,6.8675,145.64,145.61,6.8686]
[1746596789331,4.30772953,145.63,145.61,6.8686]
[1746596789532,28.72,145.68,145.6,64.74540486]
[1746596789730,6.8676,145.64,145.6,71.61420486]
[1746596789930,4.30772815,145.63,145.6,71.61420486]
[1746596790131,6.8676,145.64,145.6,71.61420486]
[1746596790735,6.8677,145.63,145.6,71.61420486]
[1746596791733,6.8677,145.63,145.61,4.75342303]
[1746596792830,6.8682,145.62,145.6,57.32]
[1746596793333,4.75342303,145.65,145.6,28.66]
[1746596793635,6.8686,145.61,145.6,28.66]
[1746596793932,4.75342303,145.65,145.6,28.66]
[1746596794129,6.8684,145.62,145.6,28.66]
[1746596797037,6.8684,145.62,145.6,35.5291]
[1746596797335,4.2735,145.66,145.61,4.75342303]
[1746596797533,4.31948823,145.65,145.61,11.62202303]
[1746596797729,11.18698823,145.64,145.61,11.62202303]
[1746596798034,4.31948823,145.63,145.6,28.66]
[1746596798235,4.31948823,145.62,145.6,35.5289]
[1746596798436,4.75342303,145.65,145.6,35.5289]
[1746596798637,4.31940969,145.64,145.6,35.5289]
[1746596798933,4.31940969,145.63,145.6,35.5289]
[1746596799133,4.31940969,145.62,145.6,35.5289]
[1746596799334,4.75342303,145.65,145.6,35.5289]
[1746596799535,4.31824254,145.64,145.6,28.66]
[1746596799738,4.31824254,145.63,145.6,28.66]
[1746596799937,4.31824254,145.62,145.6,28.66]
[1746596800239,11.18684254,145.61,145.6,28.66]
[1746596801038,4.31824254,145.61,145.6,28.66]
[1746596801237,4.31926164,145.61,145.6,28.66]
[1746596801633,9.02042501,145.61,145.6,28.66]
[1746596802532,4.70116337,145.61,145.6,28.66]
[1746596802938,6.8684,145.62,145.6,28.66]
[1746596803240,6.8686,145.61,145.6,28.66]
[1746596803439,11.18818777,145.61,145.6,28.66]
[1746596803642,4.70614339,145.61,145.6,40.28252303]
[1746596804538,4.70614339,145.61,145.6,28.66]
[1746596804738,9.02628898,145.61,145.6,28.66]
[1746596804943,15.89488898,145.61,145.6,28.66]
[1746596806238,9.02628898,145.61,145.6,28.66]
[1746596807639,15.89488898,145.61,145.6,28.66]
[1746596808544,15.89948087,145.61,145.6,28.66]
[1746596809048,9.03088087,145.61,145.57,33.41342303]
[1746596809342,4.32473748,145.6,145.57,33.41342303]
[1746596809543,4.32473748,145.59,145.57,33.41342303]
[1746596809742,4.32473748,145.58,145.57,40.28382303]
[1746596810146,9.03088087,145.58,145.57,40.28382303]
[1746596812446,9.03088087,145.58,145.57,33.41342303]
[1746596812943,4.70614339,145.58,145.57,40.28392303]
[1746596813743,4.70614339,145.58,145.57,35.5305]
[1746596814841,9.05195302,145.58,145.57,35.5305]
[1746596815647,9.05060975,145.58,145.57,35.5305]
[1746596819347,4.70614339,145.58,145.57,35.5305]
[1746596819548,9.04747613,145.58,145.57,35.5305]
[1746596819850,4.70614339,145.58,145.57,35.5305]
[1746596820050,9.04747613,145.58,145.57,35.5305]
[1746596820651,9.0446756,145.58,145.57,35.5305]
[1746596822552,9.0327956,145.58,145.57,35.5305]
[1746596823157,4.70614339,145.58,145.57,35.5305]
[1746596825048,6.8673,145.64,145.61,6.8685]
[1746596825251,4.32735022,145.63,145.61,28.68]
[1746596825456,28.68,145.68,145.61,36.11104163]
[1746596825656,6.8659,145.67,145.64,6.8671]
[1746596827254,6.8659,145.67,145.63,6.8675]
[1746596827456,6.8659,145.67,145.63,35.5675]
[1746596828053,6.8659,145.67,145.64,6.8671]
[1746596828255,6.8659,145.67,145.65,28.68]
[1746596832660,6.8659,145.67,145.65,35.5468]
[1746596833259,34.9967,145.71,145.65,35.5468]
[1746596833753,34.9967,145.71,145.65,28.68]
[1746596833754,6.8648,145.7,145.65,28.68]
[1746596834358,6.8648,145.7,145.67,6.8655]
[1746596834655,6.8648,145.7,145.65,28.68]
[1746596834858,6.8641,145.71,145.68,6.8653]
[1746596835058,117.0260866,145.72,145.68,6.8653]
[1746596835959,6.864,145.71,145.68,6.8653]
[1746596837361,117.0260866,145.72,145.69,35.5246]
[1746596838465,117.0260866,145.72,145.69,28.66]
[1746596838865,2.0972,145.75,145.69,28.66]
[1746596839058,4.3529204,145.74,145.7,6.8644]
[1746596839262,4.3529204,145.73,145.7,6.8644]
[1746596839458,6.8622,145.75,145.7,6.8644]
[1746596839758,4.35880422,145.74,145.7,6.8644]
[1746596839960,4.35880422,145.73,145.7,6.8644]
[1746596840267,6.8626,145.74,145.69,35.5247]
[1746596840460,4.35166241,145.73,145.69,35.5247]
[1746596840654,32.9417,145.78,145.69,35.5247]
[1746596840858,6.8633,145.73,145.69,35.5247]
[1746596841664,6.8635,145.72,145.69,35.5247]
[1746596842269,6.864,145.71,145.69,28.66]
[1746596843464,6.864,145.71,145.69,57.38]
[1746596843768,30.8907,145.77,145.69,57.38]
[1746596844065,4.34647838,145.76,145.69,57.38]
[1746596844363,6.8637,145.72,145.69,57.38]
[1746596845265,6.8637,145.72,145.69,64.2448]
[1746596845865,6.8629,145.74,145.7,6.8643]
[1746596846468,6.8629,145.74,145.71,6.8639]
[1746596846767,6.8629,145.74,145.69,57.38]
[1746596847467,6.8629,145.74,145.7,6.8641]
[1746596849270,6.863,145.73,145.7,6.8641]
[1746596849470,30.8707,145.77,145.7,6.8641]
[1746596849769,4.33831835,145.76,145.7,6.8641]
[1746596849967,6.8627,145.74,145.7,6.8641]
[1746596850370,30.8707,145.77,145.7,6.8641]
[1746596850569,6.863,145.74,145.7,6.8641]
[1746596851173,6.863,145.73,145.7,6.8641]
[1746596851474,6.863,145.73,145.69,57.38]
[1746596851475,6.863,145.73,145.69,64.2447]
[1746596851673,6.8638,145.72,145.69,64.2447]
[1746596853273,30.8707,145.77,145.69,64.2447]
[1746596853473,4.33441355,145.76,145.69,64.2447]
[1746596853674,4.33441355,145.75,145.69,64.2447]
[1746596853875,6.8635,145.72,145.69,64.2447]
[1746596854172,6.8635,145.72,145.7,6.8643]
[1746596854579,6.8632,145.73,145.69,28.66]
[1746596854878,30.8707,145.77,145.71,6.8638]
[1746596855079,6.8628,145.74,145.71,6.8638]
[1746596855274,30.8707,145.77,145.71,6.8638]
[1746596855474,4.33353835,145.76,145.71,6.8638]
[1746596855678,4.33353835,145.75,145.71,6.8638]
[1746596855880,30.8707,145.77,145.71,6.8638]
[1746596856078,4.33096171,145.76,145.71,6.8638]
[1746596856279,4.33096171,145.75,145.71,6.8638]
[1746596856480,11.19366171,145.74,145.71,6.8638]
[1746596856680,6.8627,145.74,145.71,6.8638]
[1746596856983,30.8707,145.77,145.71,6.8638]
[1746596857185,4.31928749,145.76,145.71,6.8638]
[1746596857375,4.31928749,145.75,145.7,6.8641]
[1746596857576,4.31928749,145.74,145.7,6.8641]
[1746596857775,30.8707,145.77,145.7,6.8641]
[1746596857976,4.32050249,145.76,145.7,6.8641]
[1746596858273,4.32050249,145.75,145.7,6.8641]
[1746596858471,4.32050249,145.74,145.7,6.8641]
[1746596858771,30.8707,145.77,145.7,6.8641]
[1746596858975,4.32021625,145.76,145.7,6.8641]
[1746596859281,4.32134216,145.75,145.7,6.8641]
[1746596859485,4.32134216,145.74,145.7,6.8641]
[1746596859676,30.8707,145.77,145.7,6.8641]
[1746596859972,4.32153552,145.76,145.7,6.8641]
[1746596860172,4.32153552,145.75,145.7,6.8641]
[1746596860374,4.32153552,145.74,145.7,6.8641]
[1746596860674,30.8707,145.77,145.7,6.8641]
[1746596860877,4.32561352,145.76,145.7,6.8641]
[1746596861078,6.8636,145.72,145.7,6.8641]
[1746596862285,6.8636,145.72,145.69,35.5247]
[1746596863784,6.8632,145.73,145.69,35.5247]
[1746596863979,2.1707,145.77,145.69,28.66]
[1746596864184,4.33268552,145.76,145.69,28.66]
[1746596864384,11.19498552,145.75,145.69,28.66]
[1746596864586,4.33268552,145.74,145.71,6.8635]
[1746596864787,4.33413533,145.73,145.71,6.8635]
[1746596864980,6.8623,145.75,145.71,6.8635]
[1746596865186,4.3344435,145.74,145.72,6.8634]
[1746596865386,6.8623,145.75,145.73,28.68]
[1746596865686,4.33484569,145.74,145.73,28.68]
[1746596866486,6.8623,145.75,145.73,28.68]
[1746596868187,6.8617,145.76,145.73,35.5429]
[1746596868484,168.35040385,145.8,145.73,28.68]
[1746596868684,4.33766873,145.79,145.73,28.68]
[1746596868884,11.19866873,145.78,145.74,6.8622]
[1746596869181,4.33766873,145.77,145.74,6.8622]
[1746596869384,4.33766873,145.76,145.74,6.8622]
[1746596869682,6.861,145.78,145.74,6.8622]
[1746596869886,4.34243401,145.77,145.74,6.8622]
[1746596870092,4.34243401,145.76,145.75,6.862]
[1746596871991,4.3439994,145.76,145.75,6.862]
[1746596872296,4.3439994,145.76,145.74,6.8623]
[1746596872494,6.8613,145.77,145.74,6.8623]
[1746596872684,4.34571224,145.76,145.74,6.8623]
[1746596872884,6.8613,145.77,145.74,6.8623]
[1746596873090,4.34567691,145.76,145.74,6.8623]
[1746596873290,6.8613,145.77,145.74,6.8623]
[1746596873590,4.34621648,145.76,145.73,35.5427]
[1746596873790,4.34621648,145.75,145.73,35.5427]
[1746596873991,2.0988,145.79,145.73,35.5427]
[1746596874191,6.8615,145.77,145.73,35.5427]
[1746596874489,4.34720767,145.76,145.74,6.8623]
[1746596874691,6.8609,145.78,145.73,28.68]
[1746596874887,4.34913063,145.77,145.73,28.68]
[1746596875087,4.34913063,145.76,145.73,28.68]
[1746596875291,6.8606,145.79,145.75,6.862]
[1746596875493,4.34963288,145.78,145.75,6.862]
[1746596875688,4.34963288,145.77,145.75,6.862]
[1746596875888,4.33866158,145.76,145.75,6.862]
[1746596876394,4.33866158,145.76,145.74,6.8624]
[1746596876586,6.8612,145.77,145.73,28.68]
[1746596876587,4.33910403,145.75,145.73,28.68]
[1746596876880,113.23000385,145.8,145.73,28.68]
[1746596877083,6.8614,145.77,145.73,35.5425]
[1746596877285,4.34211472,145.76,145.73,28.68]
[1746596877486,4.34211472,145.75,145.73,28.68]
[1746596877689,6.8619,145.76,145.73,28.68]
[1746596877891,4.34349561,145.75,145.73,28.68]
[1746596878089,6.8619,145.76,145.73,28.68]
[1746596878285,4.34345336,145.75,145.73,28.68]
[1746596878487,6.8619,145.76,145.73,28.68]
[1746596878699,4.34492274,145.75,145.73,28.68]
[1746596878988,4.34492274,145.74,145.73,28.68]
[1746596879491,4.35065599,145.74,145.73,28.68]
[1746596879689,11.21315599,145.74,145.73,28.68]
[1746596880488,6.8631,145.73,145.7,599.7642]
[1746596880687,4.35065599,145.72,145.7,628.4442]
[1746596880883,6.8631,145.73,145.7,628.4442]
[1746596881087,4.35276461,145.72,145.7,628.4442]
[1746596881288,6.8631,145.73,145.7,628.4442]
[1746596881491,4.3542182,145.72,145.7,628.4442]
[1746596881789,6.8631,145.73,145.7,628.4442]
[1746596882193,9.12522002,145.72,145.7,628.4442]
[1746596882393,4.77092354,145.72,145.7,628.4442]
[1746596882996,4.77092354,145.71,145.7,628.4442]
[1746596884699,4.77092354,145.71,145.7,35.5442]
[1746596888298,4.77092354,145.71,145.7,35.5444]
[1746596891398,9.13629012,145.71,145.7,28.68]
[1746596892003,16.00019012,145.71,145.7,28.68]
[1746596893405,16.00213015,145.71,145.7,28.68]
[1746596893703,16.00213015,145.71,145.67,6.8658]
[1746596893704,6.8647,145.7,145.67,35.5458]
[1746596893902,4.36730661,145.69,145.68,6.8653]
[1746596894402,9.13823015,145.69,145.68,6.8653]
[1746596894799,9.13823015,145.69,145.67,35.5457]
[1746596895000,4.77092354,145.68,145.67,35.5457]
[1746596897206,4.77092354,145.68,145.67,28.68]
[1746596898208,9.13694056,145.68,145.67,28.68]
[1746596898603,4.77092354,145.68,145.67,35.5458]
[1746596899007,9.13640207,145.68,145.67,35.5458]
[1746596899409,4.77092354,145.68,145.67,35.5458]
[1746596899906,9.13615202,145.68,145.67,28.68]
[1746596901101,16.00145202,145.68,145.67,28.68]
[1746596903914,15.99595592,145.68,145.67,28.68]
[1746596905007,15.99595592,145.68,145.65,599.7267]
[1746596905008,6.8658,145.67,145.65,6.8667]
[1746596905220,4.77092354,145.68,145.64,35.547]
[1746596905406,4.35800571,145.67,145.64,35.547]
[1746596905608,4.77092354,145.66,145.64,35.547]
[1746596906214,6.8661,145.67,145.64,35.547]
[1746596906913,4.59814498,145.66,145.64,35.547]
[1746596907916,6.8661,145.67,145.64,35.547]
[1746596908518,6.8656,145.68,145.65,6.8665]
[1746596908822,28.66,145.69,145.65,6.8665]
[1746596909114,8.95074264,145.68,145.65,6.8665]
[1746596909317,4.59625899,145.68,145.65,6.8665]
[1746596909617,4.59625899,145.67,145.66,6.8663]
[1746596910213,4.59625899,145.67,145.64,36.11104163]
[1746596910614,6.8653,145.69,145.64,36.11104163]
[1746596910812,8.94681903,145.68,145.64,36.11104163]
[1746596911007,8.94681903,145.68,145.65,6.8667]
[1746596911008,4.59387946,145.68,145.65,6.8667]
[1746596911215,4.59387946,145.67,145.65,6.8667]
[1746596911722,6.8653,145.69,145.65,6.8667]
[1746596911922,4.35167231,145.68,145.66,6.8662]
[1746596912127,6.8653,145.69,145.66,6.8662]
[1746596912328,11.21699799,145.68,145.64,36.11104163]
[1746596912520,6.8654,145.68,145.64,36.11104163]
[1746596912718,6.8654,145.68,145.65,6.8665]
[1746596913124,4.59115513,145.67,145.65,6.8665]
[1746596913725,4.59115513,145.67,145.66,6.8663]
[1746596913925,28.66,145.73,145.65,28.66]
[1746596914126,6.8643,145.71,145.67,6.8656]
[1746596914326,4.58956298,145.7,145.68,28.64]
[1746596914729,6.8643,145.71,145.68,28.64]
[1746596915325,6.8646,145.7,145.68,28.64]
[1746596916428,4.59136627,145.69,145.68,28.64]
[1746596920029,11.45626627,145.69,145.68,28.64]
[1746596923433,6.8665,145.66,145.65,28.64]
[1746596923631,4.35681096,145.66,145.64,28.64]
[1746596923830,4.59136627,145.66,145.64,28.64]
[1746596924032,4.59136627,145.65,145.64,28.64]
[1746596924232,8.94843534,145.65,145.64,28.64]
[1746596924530,15.81533534,145.65,145.64,28.64]
[1746596925131,8.94843534,145.65,145.64,28.64]
[1746596926434,8.9483538,145.65,145.64,28.64]
[1746596926931,8.9483538,145.65,145.63,6.8674]
[1746596927229,4.35635391,145.64,145.63,28.64]
[1746596927437,8.94772018,145.64,145.6,28.64]
[1746596927734,11.45916627,145.63,145.6,28.64]
[1746596928036,11.45916627,145.63,145.6,35.5091]
[1746596928237,4.59136627,145.63,145.6,35.5091]
[1746596928638,4.59136627,145.62,145.61,6.8686]
[1746596940250,6.8665,145.66,145.62,6.8678]
[1746596940550,11.21904436,145.65,145.62,6.8678]
[1746596940753,8.95074271,145.64,145.62,6.8678]
[1746596940951,4.35249791,145.63,145.62,6.8678]
[1746596941147,4.35249791,145.63,145.6,28.64]
[1746596941454,4.35310064,145.62,145.6,35.509]
[1746596941648,11.46619835,145.63,145.6,35.509]
[1746596941853,8.95141462,145.62,145.6,35.509]
[1746596942049,4.59849835,145.61,145.6,35.509]
[1746596943355,4.59849835,145.61,145.6,28.64]
[1746596949463,11.46709835,145.61,145.6,28.64]
[1746596949663,15.8397991,145.61,145.6,28.64]
[1746596949957,15.8397991,145.61,145.58,6.8698]
[1746596950257,4.59849835,145.6,145.58,6.8698]
[1746596950564,6.8686,145.61,145.58,6.8698]
[1746596951870,4.59461829,145.6,145.58,6.8698]
[1746596952263,4.59461829,145.6,145.59,6.8696]
[1746596952462,6.8686,145.61,145.59,6.8696]
[1746596952763,6.8686,145.61,145.58,6.8698]
[1746596953166,8.97617994,145.6,145.58,6.8698]
[1746596953360,4.59330929,145.6,145.58,6.8698]
[1746596953559,4.59330929,145.59,145.58,6.8698]
[1746596954767,4.59330929,145.59,145.57,35.5304]
[1746596955268,4.59330929,145.59,145.57,28.66]
[1746596955970,15.84769281,145.58,145.57,28.66]
[1746596956156,15.84769281,145.58,145.54,6.8717]
[1746596956157,8.97759281,145.58,145.54,6.8717]
[1746596956357,4.59330929,145.57,145.54,35.5317]
[1746596956663,11.46390929,145.57,145.54,35.5317]
[1746596957068,6.8706,145.57,145.54,35.5317]
[1746596957968,6.8711,145.56,145.54,28.66]
[1746596958161,28.68,145.59,145.54,28.66]
[1746596958363,8.96800979,145.58,145.54,28.66]
[1746596958562,4.58775042,145.58,145.54,28.66]
[1746596958872,6.8706,145.57,145.54,35.5317]
[1746596959470,6.8712,145.56,145.54,28.66]
[1746596959968,28.68,145.59,145.54,28.66]
[1746596960170,4.38422899,145.58,145.54,28.66]
[1746596960471,11.45701771,145.57,145.54,35.5319]
[1746596961072,6.8708,145.57,145.54,35.5319]
[1746596963372,28.68,145.59,145.55,6.8714]
[1746596963571,4.39309414,145.58,145.55,6.8714]
[1746596963873,6.8704,145.58,145.55,6.8714]
[1746596964271,33.0151,145.6,145.54,35.5318]
[1746596964470,8.97996965,145.59,145.54,35.5318]
[1746596964670,4.39011715,145.58,145.54,35.5318]
[1746596964971,4.5898525,145.57,145.54,35.5318]
[1746596965671,33.0151,145.6,145.54,35.5318]
[1746596965871,4.39148172,145.59,145.54,35.5318]
[1746596966066,4.39148172,145.58,145.54,35.5318]
[1746596966267,6.8697,145.59,145.54,35.5318]
[1746596966572,4.39186642,145.58,145.55,6.8713]
[1746596966772,8.9864019,145.57,145.54,28.66]
[1746596966977,4.59319794,145.57,145.54,28.66]
[1746596967271,4.59319794,145.56,145.54,28.66]
[1746596967572,6.8702,145.58,145.54,28.66]
[1746596967773,4.39485499,145.57,145.54,28.66]
[1746596968073,4.59496449,145.57,145.54,28.66]
[1746596968473,4.59496449,145.56,145.54,28.66]
[1746596969174,6.8702,145.58,145.55,6.8714]
[1746596969373,4.39593936,145.57,145.55,6.8714]
[1746596969569,6.8702,145.58,145.55,6.8714]
[1746596969769,8.99232824,145.57,145.55,6.8714]
[1746596969968,4.59614362,145.57,145.55,6.8714]
[1746596970373,4.59614362,145.56,145.55,6.8714]
[1746596971677,4.59614362,145.56,145.55,11.62915034]
[1746596974775,6.8699,145.59,145.55,11.62915034]
[1746596974976,4.39388736,145.58,145.55,11.62915034]
[1746596975176,6.8699,145.59,145.55,11.62915034]
[1746596975377,4.59608713,145.57,145.55,11.62915034]
[1746596975876,6.8699,145.59,145.55,11.62915034]
[1746596976072,4.39344535,145.58,145.55,11.62915034]
[1746596976373,6.8699,145.59,145.55,11.62915034]
[1746596976670,4.38692832,145.58,145.55,11.62915034]
[1746596976870,4.59672722,145.57,145.55,11.62915034]
[1746596977179,4.59672722,145.56,145.55,11.62915034]
[1746596979377,4.59672722,145.56,145.55,6.8714]
[1746596979579,4.59672722,145.56,145.55,11.62915034]
[1746596981780,4.59672722,145.56,145.55,6.8714]
[1746596981979,4.59672722,145.56,145.54,28.66]
[1746596981980,8.98448866,145.56,145.54,28.66]
[1746596982181,4.59672722,145.56,145.54,28.66]
[1746596982376,4.59672722,145.55,145.54,28.66]
[1746596982781,4.59672722,145.55,145.52,4.75775034]
[1746596982982,4.59672722,145.55,145.54,6.8719]
[1746596983183,8.99572256,145.55,145.54,6.8719]
[1746596984780,9.00076214,145.55,145.54,6.8719]
[1746596987182,4.59672722,145.55,145.54,6.8719]
[1746596987381,9.00199547,145.55,145.54,6.8719]
[1746596987876,9.00181729,145.55,145.54,6.8719]
[1746596988273,9.00113808,145.55,145.54,6.8719]
[1746596988991,9.00113808,145.55,145.53,11.63005034]
[1746596989183,4.59672722,145.55,145.53,11.63005034]
[1746596989383,4.59672722,145.54,145.53,11.63005034]